fUSD/lending_fUSD_20260505
["ID","MTS","AMOUNT","RATE_DAILY","PERIOD"]
[421616236,1777968632000,-368.0,0.00037266,30]
[421616239,1777968632000,-150.0,0.00037358,7]
[421616227,1777968632000,-150.0,0.00037154,7]
[421616243,1777968632000,-340.26,0.00037671,120]
[421616245,1777968632000,-510.0,0.0003771,13]
[421616256,1777968632000,-350.0,0.00037917,3]
[421616252,1777968632000,-150.0,0.00037818,7]
[421616247,1777968632000,-9589.84089846,0.00037718,2]
[421616250,1777968632000,-150.0,0.00037818,7]
[421616241,1777968632000,-150.0,0.00037665,7]
[421616301,1777968633000,-500.0,0.0003917,2]
[421616295,1777968633000,-189.9926087,0.0003917,2]
[421616294,1777968633000,-500.0,0.0003917,2]
[421616299,1777968633000,-379.10052604,0.0003917,2]
[421616298,1777968633000,-500.0,0.0003917,2]
[421616297,1777968633000,-500.0,0.0003917,2]
[421616296,1777968633000,-500.0,0.0003917,2]
[421616293,1777968633000,-500.0,0.0003917,2]
[421616288,1777968633000,-1049.0,0.00039,2]
[421616287,1777968633000,-927.29206522,0.00038994,2]
[421616290,1777968633000,-6421.53634784,0.00039,30]
[421616285,1777968633000,-181.376504,0.00038901,21]
[421616286,1777968633000,-9589.84089844,0.0003893,2]
[421616289,1777968633000,-6334.46365216,0.00039,30]
[421616291,1777968633000,-500.0,0.0003917,2]
[421616292,1777968633000,-500.0,0.0003917,2]
[421616302,1777968633000,-500.0,0.0003917,2]
[421616284,1777968633000,-150.0,0.0003889,7]
[421616303,1777968633000,-500.0,0.0003917,2]
[421616300,1777968633000,-175.84991684,0.0003917,2]
[421616317,1777968633000,-5282.44873287,0.00039561,2]
[421616318,1777968633000,-2951.39750204,0.00039561,2]
[421616315,1777968633000,-2000.0,0.00039527,2]
[421616316,1777968633000,-2806.56134923,0.00039561,2]
[421616307,1777968633000,-150.0,0.00039196,7]
[421616311,1777968633000,-9589.84089844,0.00039415,2]
[421616308,1777968633000,-500.0,0.000392,7]
[421616319,1777968633000,-49.89633987,0.00039172,15]
[421616309,1777968633000,-333.02,0.000392,7]
[421616312,1777968633000,-2500.0,0.00039461,2]
[421616304,1777968633000,-500.0,0.0003917,2]
[421616313,1777968633000,-150.0,0.00039502,7]
[421616306,1777968633000,-9589.84089844,0.00039173,2]
[421616314,1777968633000,-685.0,0.00039527,5]
[421616305,1777968633000,-500.0,0.0003917,2]
[421616310,1777968633000,-12086.71869084,0.000393,2]
[421616327,1777968638000,-200.10366013,0.00039172,15]
[421616329,1777968638000,-340.26,0.00039413,120]
[421616330,1777968638000,-305.0,0.00039561,30]
[421616328,1777968638000,-209.56913519,0.00039172,15]
[421616326,1777968638000,-618.19471015,0.00038994,2]
[421616321,1777968638000,-1199.89,0.00038713,2]
[421616325,1777968638000,-59.644275,0.00038838,120]
[421616324,1777968638000,-100.0,0.00038838,120]
[421616322,1777968638000,-180.615725,0.00038838,120]
[421616331,1777968638000,-4616.84416509,0.00039561,2]
[421616323,1777968638000,-500.0,0.00036137,2]
[421616335,1777968638000,-6096.1148083,0.00039595,2]
[421616336,1777968638000,-219.199999,0.000396,31]
[421616333,1777968638000,-5000.0,0.00039595,2]
[421616339,1777968638000,-185.06959616,0.0003962,2]
[421616332,1777968638000,-2464.0274,0.00039592,2]
[421616345,1777968638000,-133416.31907867,0.00039661,2]
[421616340,1777968638000,-213.38507504,0.00039627,2]
[421616342,1777968638000,-9589.84089844,0.00039658,2]
[421616344,1777968638000,-7284.2293815,0.00039661,2]
[421616346,1777968638000,-1828.7078473,0.00039661,2]
[421616341,1777968638000,-500.0,0.00039652,7]
[421616338,1777968638000,-219.199999,0.000396,31]
[421616334,1777968638000,-162.1350869,0.00039595,2]
[421616337,1777968638000,-219.2,0.000396,31]
[421616343,1777968638000,-161.95154702,0.0003966,7]
[421616370,1777968640000,-500.0,0.00039673,5]
[421616362,1777968640000,-1305.78883973,0.00039661,2]
[421616361,1777968640000,-494.23810543,0.00039661,2]
[421616364,1777968640000,-3108.5417572,0.00039661,2]
[421616363,1777968640000,-2908.53008477,0.00039661,2]
[421616366,1777968640000,-3136.4266189,0.00039661,2]
[421616367,1777968640000,-500.0,0.00039673,5]
[421616368,1777968640000,-178.7776995,0.00039673,5]
[421616365,1777968640000,-1378.314788,0.00039661,2]
[421616369,1777968640000,-500.0,0.00039673,5]
[421616378,1777968640000,-161.19095972,0.00039688,7]
[421616382,1777968640000,-1386.78395259,0.0003969,5]
[421616372,1777968640000,-500.0,0.00039688,7]
[421616376,1777968640000,-500.0,0.00039688,7]
[421616375,1777968640000,-215.34409732,0.00039688,7]
[421616374,1777968640000,-500.0,0.00039688,7]
[421616380,1777968640000,-200.0,0.0003969,30]
[421616381,1777968640000,-202.02219804,0.0003969,30]
[421616377,1777968640000,-500.0,0.00039688,7]
[421616371,1777968640000,-169.26253244,0.00039685,2]
[421616373,1777968640000,-305.09398862,0.00039688,7]
[421616379,1777968640000,-162.51838138,0.00039688,7]
[421616388,1777968641000,-162.380719,0.0003969,30]
[421616383,1777968641000,-1438.09495884,0.0003969,5]
[421616384,1777968641000,-1491.30447232,0.0003969,5]
[421616386,1777968641000,-151.0,0.0003969,30]
[421616387,1777968641000,-156.587,0.0003969,30]
[421616385,1777968641000,-1249.91890582,0.0003969,5]
[421616395,1777968641000,-416.21191735,0.00039694,15]
[421616390,1777968641000,-254.12216268,0.0003969,30]
[421616391,1777968641000,-500.0,0.00039691,7]
[421616389,1777968641000,-168.3888056,0.0003969,30]
[421616392,1777968641000,-500.0,0.00039694,15]
[421616394,1777968641000,-288.70627253,0.00039694,15]
[421616397,1777968641000,-200.0,0.00039695,30]
[421616396,1777968641000,-589.0,0.00039694,5]
[421616398,1777968641000,-13289.62869603,0.00039695,47]
[421616399,1777968641000,-40738.31999839,0.00039695,30]
[421616400,1777968641000,-44.99319339,0.00038994,2]
[421616393,1777968641000,-387.48368837,0.00039694,15]
[421616414,1777968643000,-37379.45093944,0.00039695,30]
[421616413,1777968643000,-900.0,0.00039695,30]
[421616459,1777968646000,-340.61471985,0.00038994,2]
[421616460,1777968646000,-71.51508691,0.00038994,2]
[421616458,1777968646000,-671.88528015,0.00038994,2]
[421616462,1777968646000,-92.30824035,0.00039695,30]
[421616461,1777968646000,-603012.46402049,0.00039695,30]
[421616463,1777968646000,-7176.19029309,0.00039695,30]
[421616473,1777968647000,-21918.47591317,0.00039695,30]
[421616474,1777968647000,-2589.53252306,0.00039695,30]
[421616472,1777968647000,-5730.20155493,0.00039695,30]
[421616501,1777969628000,-161.69,0.00018244,2]
[421616503,1777969628000,-697.67,0.00020951,2]
[421616502,1777969628000,-223.0,0.0002,2]
[421616505,1777969628000,-223.0,0.00022,2]
[421616507,1777969628000,-166.88301868,0.00023,2]
[421616506,1777969628000,-601.44,0.00022562,2]
[421616504,1777969628000,-223.0,0.00021,2]
[421616516,1777969704000,200.0,0.0003013,120]
[421616520,1777969747000,-223.0,0.00024,2]
[421616519,1777969747000,-56.11698132,0.00023,2]
[421616521,1777969747000,-238.79850598,0.00025,2]
[421616522,1777969747000,-165.64657294,0.00027137,2]
[421616523,1777969747000,-510.0,0.00027137,2]
[421616530,1777969747000,-1053.25904167,0.00031267,2]
[421616528,1777969747000,-10359.5,0.00031267,2]
[421616526,1777969747000,-241.28038308,0.00031249,2]
[421616527,1777969747000,-223.0,0.00031267,30]
[421616525,1777969747000,-151.0,0.00031249,2]
[421616524,1777969747000,-299.9,0.0003013,30]
[421616529,1777969747000,-1375.68565296,0.00031267,2]
[421616531,1777969753000,-1481.68669687,0.00031267,2]
[421616532,1777969756000,43275.66851119,0.00010682,2]
[421616533,1777969761000,-6089.3586085,0.00031267,2]
[421616534,1777969761000,-4238.1871515,0.00031267,2]
[421616535,1777969771000,262.30258453,0.000101,2]
[421616548,1777969831000,-152.0,0.00021,2]
[421616574,1777969831000,-152.39220262,0.00035827,7]
[421616571,1777969831000,-299.99,0.00035633,30]
[421616569,1777969831000,-9999.99,0.00035267,2]
[421616568,1777969831000,-14370.8,0.00035267,2]
[421616563,1777969831000,-150.99,0.00034267,2]
[421616564,1777969831000,-151.07323797,0.00034369,30]
[421616565,1777969831000,-181.145,0.00034879,40]
[421616561,1777969831000,-152.0,0.00034267,30]
[421616560,1777969831000,-510.0,0.00033745,9]
[421616559,1777969831000,-560.0,0.00033654,2]
[421616557,1777969831000,-152.0,0.00032267,30]
[421616556,1777969831000,-10327.59549206,0.00032,120]
[421616575,1777969831000,-289.43454192,0.00035827,7]
[421616558,1777969831000,-152.0,0.00033267,30]
[421616566,1777969831000,-997.32,0.00034879,40]
[421616567,1777969831000,-152.0,0.00035267,30]
[421616555,1777969831000,-152.0,0.00031267,30]
[421616551,1777969831000,-163.0,0.00024,2]
[421616549,1777969831000,-152.0,0.00022,2]
[421616553,1777969831000,-400.0,0.00031266,2]
[421616554,1777969831000,-349.0,0.00031266,2]
[421616550,1777969831000,-152.0,0.00023,2]
[421616552,1777969831000,-301.9417159,0.00027,2]
[421616547,1777969831000,-152.0,0.0002,2]
[421616573,1777969831000,-150.0,0.00035827,7]
[421616562,1777969831000,-3350.95,0.00034267,2]
[421616570,1777969831000,-1359.92,0.00035633,2]
[421616572,1777969831000,-150.0,0.00035827,30]
[421616601,1777969831000,-360.86,0.00038034,30]
[421616600,1777969831000,-2911.87623016,0.00038,120]
[421616599,1777969831000,-350.0,0.00037907,5]
[421616595,1777969831000,-215.34,0.00037389,2]
[421616596,1777969831000,-150.0,0.00037818,7]
[421616592,1777969831000,-200.0,0.00036935,2]
[421616590,1777969831000,-500.0,0.0003674,2]
[421616593,1777969831000,-474.51,0.00036972,2]
[421616589,1777969831000,-642.7,0.00036725,5]
[421616591,1777969831000,-456.95,0.00036882,2]
[421616598,1777969831000,-150.0,0.00037818,7]
[421616597,1777969831000,-150.0,0.00037818,7]
[421616594,1777969831000,-152.0,0.00037267,30]
[421616588,1777969831000,-200.0,0.00036699,2]
[421616586,1777969831000,-5000.01,0.00036489,2]
[421616580,1777969831000,-783.0,0.00036224,2]
[421616581,1777969831000,-887.88468949,0.00036243,2]
[421616585,1777969831000,-161.69,0.00036489,2]
[421616582,1777969831000,-775.0,0.00036243,2]
[421616577,1777969831000,-150.0,0.00035827,7]
[421616576,1777969831000,-150.0,0.00035827,7]
[421616579,1777969831000,-5000.0,0.00036144,2]
[421616578,1777969831000,-150.0,0.00035827,7]
[421616583,1777969831000,-152.0,0.00036267,30]
[421616587,1777969831000,-475.04,0.00036698,2]
[421616584,1777969831000,-475.04,0.00036424,2]
[421616649,1777969832000,-500.0,0.00038999,15]
[421616648,1777969832000,-500.0,0.00038999,15]
[421616647,1777969832000,-500.0,0.00038999,15]
[421616642,1777969832000,-500.0,0.00038999,15]
[421616639,1777969832000,-500.0,0.00038999,15]
[421616633,1777969832000,-500.0,0.00038999,15]
[421616638,1777969832000,-500.0,0.00038999,15]
[421616631,1777969832000,-500.0,0.00038999,15]
[421616635,1777969832000,-500.0,0.00038999,15]
[421616628,1777969832000,-500.0,0.00038999,15]
[421616641,1777969832000,-500.0,0.00038999,15]
[421616640,1777969832000,-500.0,0.00038999,15]
[421616644,1777969832000,-500.0,0.00038999,15]
[421616656,1777969832000,-461.69564547,0.00038999,15]
[421616643,1777969832000,-500.0,0.00038999,15]
[421616645,1777969832000,-500.0,0.00038999,15]
[421616662,1777969832000,-500.0,0.00038999,15]
[421616660,1777969832000,-500.0,0.00038999,15]
[421616650,1777969832000,-500.0,0.00038999,15]
[421616653,1777969832000,-500.0,0.00038999,15]
[421616651,1777969832000,-500.0,0.00038999,15]
[421616655,1777969832000,-500.0,0.00038999,15]
[421616652,1777969832000,-500.0,0.00038999,15]
[421616657,1777969832000,-500.0,0.00038999,15]
[421616658,1777969832000,-500.0,0.00038999,15]
[421616630,1777969832000,-590.25,0.00038999,15]
[421616654,1777969832000,-500.0,0.00038999,15]
[421616646,1777969832000,-500.0,0.00038999,15]
[421616629,1777969832000,-186.54518951,0.00038999,15]
[421616617,1777969832000,-500.0,0.00038999,15]
[421616627,1777969832000,-500.0,0.00038999,15]
[421616602,1777969832000,-553.0,0.00038085,2]
[421616611,1777969832000,-3915.2743,0.000389,2]
[421616610,1777969832000,-224.74966561,0.00038896,2]
[421616603,1777969832000,-215.34,0.00038323,2]
[421616604,1777969832000,-156.15270631,0.00038394,120]
[421616607,1777969832000,-150.0,0.00038896,2]
[421616605,1777969832000,-156.15270631,0.00038394,120]
[421616606,1777969832000,-150.0,0.00038896,2]
[421616609,1777969832000,-150.0,0.00038896,2]
[421616608,1777969832000,-150.0,0.00038896,2]
[421616615,1777969832000,-500.0,0.00038999,15]
[421616612,1777969832000,-18897.064,0.000389,2]
[421616616,1777969832000,-232.62264806,0.00038999,15]
[421616618,1777969832000,-500.0,0.00038999,15]
[421616614,1777969832000,-500.0,0.00038999,15]
[421616621,1777969832000,-500.0,0.00038999,15]
[421616613,1777969832000,-1097.0,0.00038991,5]
[421616620,1777969832000,-500.0,0.00038999,15]
[421616622,1777969832000,-500.0,0.00038999,15]
[421616623,1777969832000,-500.0,0.00038999,15]
[421616624,1777969832000,-500.0,0.00038999,15]
[421616619,1777969832000,-500.0,0.00038999,15]
[421616636,1777969832000,-500.0,0.00038999,15]
[421616626,1777969832000,-500.0,0.00038999,15]
[421616637,1777969832000,-500.0,0.00038999,15]
[421616634,1777969832000,-500.0,0.00038999,15]
[421616632,1777969832000,-500.0,0.00038999,15]
[421616625,1777969832000,-500.0,0.00038999,15]
[421616665,1777969832000,-500.0,0.00038999,15]
[421616659,1777969832000,-500.0,0.00038999,15]
[421616663,1777969832000,-500.0,0.00038999,15]
[421616699,1777969832000,-185.06959613,0.00039595,2]
[421616710,1777969832000,-184.13626723,0.00039693,15]
[421616709,1777969832000,-300.0,0.00039693,10]
[421616698,1777969832000,-5000.0,0.00039594,2]
[421616705,1777969832000,-205.68409937,0.00039684,2]
[421616702,1777969832000,-219.2,0.000396,31]
[421616700,1777969832000,-2784.52017947,0.00039595,2]
[421616707,1777969832000,-151.0,0.00039692,14]
[421616701,1777969832000,-219.199999,0.000396,31]
[421616706,1777969832000,-151.0,0.00039692,14]
[421616704,1777969832000,-506.58951316,0.00039673,5]
[421616703,1777969832000,-219.199999,0.000396,31]
[421616708,1777969832000,-155.42950694,0.00039692,14]
[421616715,1777969832000,-528.41914445,0.00039693,15]
[421616711,1777969832000,-500.0,0.00039693,15]
[421616712,1777969832000,-500.0,0.00039693,15]
[421616713,1777969832000,-271.23858186,0.00039693,15]
[421616714,1777969832000,-410.42965769,0.00039693,15]
[421616722,1777969832000,-300.0,0.00039693,10]
[421616719,1777969832000,-29102.9009454,0.00039693,2]
[421616716,1777969832000,-5596.1352672,0.00039693,2]
[421616721,1777969832000,-529.11263333,0.00039693,2]
[421616720,1777969832000,-1150.1602411,0.00039693,2]
[421616717,1777969832000,-3042.9276783,0.00039693,2]
[421616718,1777969832000,-1987.9916946,0.00039693,2]
[421616723,1777969832000,-854.0,0.00039693,5]
[421616661,1777969832000,-500.0,0.00038999,15]
[421616695,1777969832000,-512.0,0.00039414,30]
[421616697,1777969832000,-2500.0,0.00039561,2]
[421616696,1777969832000,-701.3722,0.00039495,2]
[421616687,1777969832000,-650.0,0.00038999,15]
[421616672,1777969832000,-500.0,0.00038999,15]
[421616664,1777969832000,-500.0,0.00038999,15]
[421616673,1777969832000,-500.0,0.00038999,15]
[421616668,1777969832000,-500.0,0.00038999,15]
[421616667,1777969832000,-500.0,0.00038999,15]
[421616671,1777969832000,-500.0,0.00038999,15]
[421616669,1777969832000,-500.0,0.00038999,15]
[421616670,1777969832000,-500.0,0.00038999,15]
[421616666,1777969832000,-500.0,0.00038999,15]
[421616676,1777969832000,-500.0,0.00038999,15]
[421616681,1777969832000,-500.0,0.00038999,15]
[421616684,1777969832000,-500.0,0.00038999,15]
[421616693,1777969832000,-3361.2427746,0.00039339,2]
[421616682,1777969832000,-500.0,0.00038999,15]
[421616674,1777969832000,-500.0,0.00038999,15]
[421616685,1777969832000,-500.0,0.00038999,15]
[421616694,1777969832000,-300.0,0.00039414,30]
[421616692,1777969832000,-215.34,0.00039258,2]
[421616688,1777969832000,-187.39390994,0.00038999,15]
[421616678,1777969832000,-500.0,0.00038999,15]
[421616689,1777969832000,-10000.0,0.00039,7]
[421616691,1777969832000,-500.0,0.00039199,7]
[421616690,1777969832000,-6251.0,0.00039,30]
[421616675,1777969832000,-262.09368495,0.00038999,15]
[421616680,1777969832000,-500.0,0.00038999,15]
[421616679,1777969832000,-500.0,0.00038999,15]
[421616683,1777969832000,-500.0,0.00038999,15]
[421616677,1777969832000,-500.0,0.00038999,15]
[421616686,1777969832000,-500.0,0.00038999,15]
[421616726,1777969833000,-1000.0,0.00039694,2]
[421616724,1777969833000,-677.0,0.00039694,5]
[421616732,1777969833000,-434889.38293594,0.00039694,30]
[421616727,1777969833000,-1000.0,0.00039694,2]
[421616730,1777969833000,-500.0,0.00039694,7]
[421616725,1777969833000,-6644.81434802,0.00039694,47]
[421616735,1777969833000,-6378.94948713,0.00039694,30]
[421616731,1777969833000,-500.0,0.00039694,7]
[421616736,1777969833000,-498.89387459,0.00039694,30]
[421616734,1777969833000,-19606.16456814,0.00039694,30]
[421616733,1777969833000,-27823.45470921,0.00039694,30]
[421616729,1777969833000,-200.0,0.00039694,30]
[421616728,1777969833000,-1000.0,0.00039694,2]
[421616761,1777969837000,-384.81729152,0.00039694,30]
[421616759,1777969837000,-255.34702162,0.00039693,30]
[421616760,1777969837000,-256.0,0.00039693,30]
[421616758,1777969837000,-340.65297838,0.00039693,30]
[421616789,1777969840000,-3774.13217871,0.00039694,30]
[421616787,1777969840000,-510.0,0.00039694,30]
[421616788,1777969840000,-300.0,0.00039694,30]
[421616797,1777969843000,-668.800001,0.00039627,2]
[421616796,1777969843000,-219.199999,0.000396,31]
[421616799,1777969843000,-768.0,0.00039694,30]
[421616798,1777969843000,-660.98430916,0.00039627,2]
[421616800,1777969843000,-18234.64749305,0.00039694,30]
[421616805,1777969849000,-8397.58367153,0.00039694,30]
[421616804,1777969849000,-928.0,0.00039694,30]
[421616803,1777969849000,-17897.5350552,0.00039694,30]
[421616802,1777969849000,-278.27566475,0.00039694,30]
[421616801,1777969849000,-219.2,0.000396,31]
[421616819,1777970032000,-518.0,0.00027137,2]
[421616830,1777970091000,160.9,0.00019031,2]
[421616832,1777970155000,237.2332,0.00027037,2]
[421616833,1777970323000,518.0,0.00028,2]
[421616835,1777970403000,160.0,0.00031,2]
[421616837,1777970684000,518.0,0.00028,2]
[421616839,1777970752000,-180.9387515,0.000317,2]
[421616840,1777970752000,-8.91009773,0.000317,2]
[421616844,1777970803000,-4307.24179682,0.00032999,60]
[421616843,1777970803000,-165.548992,0.0003184,2]
[421616842,1777970803000,-180.9387515,0.000317,2]
[421616841,1777970803000,-172.02865377,0.000317,2]
[421616846,1777970825000,-4.1930468,0.00032999,3]
[421616845,1777970825000,-692.75820318,0.00032999,60]
[421616848,1777970840000,-392.31811105,0.00032999,3]
[421616849,1777970849000,369.2479971,0.00025,2]
[421616850,1777970881000,25000.0,0.00022,2]
[421616851,1777970983000,569.0,0.00028,2]
[421616852,1777970987000,162.0,0.00031,30]
[421616866,1777971031000,-236.0,0.00033556,3]
[421616862,1777971031000,-286.5394946,0.00033049,2]
[421616874,1777971031000,-152.0,0.00034893,3]
[421616873,1777971031000,-797.856,0.00034878,40]
[421616872,1777971031000,-9999.99,0.0003478,2]
[421616857,1777971031000,-68.08565408,0.000323,5]
[421616854,1777971031000,-166.9115626,0.000317,2]
[421616859,1777971031000,-5000.0,0.00032998,60]
[421616860,1777971031000,-1600.0,0.00032998,3]
[421616855,1777971031000,-14.0271889,0.000317,2]
[421616853,1777971031000,-180.9387515,0.000317,2]
[421616865,1777971031000,-553.0,0.00033555,3]
[421616858,1777971031000,-926.91434592,0.000323,5]
[421616861,1777971031000,-593.08,0.00033048,60]
[421616856,1777971031000,-180.9387515,0.000317,2]
[421616867,1777971031000,-155.84321884,0.000345,7]
[421616863,1777971031000,-400.0,0.00033554,2]
[421616880,1777971031000,-26080.93339601,0.00035,30]
[421616879,1777971031000,-20759.18013677,0.00035,30]
[421616881,1777971031000,-1254.41808677,0.00035,30]
[421616878,1777971031000,-150.0,0.00034999,2]
[421616877,1777971031000,-1002.4750944,0.00034999,2]
[421616882,1777971031000,-418.75,0.00035,30]
[421616876,1777971031000,-886.88,0.0003499,10]
[421616870,1777971031000,-5761.8,0.0003478,2]
[421616871,1777971031000,-4024.24,0.0003478,30]
[421616869,1777971031000,-1487.93,0.00034674,2]
[421616868,1777971031000,-162.51838138,0.00034672,2]
[421616864,1777971031000,-300.0,0.00033554,3]
[421616875,1777971031000,-177.37,0.0003499,10]
[421616885,1777971032000,-1005.3639732,0.00035,30]
[421616884,1777971032000,-2764.25765987,0.00035,30]
[421616886,1777971032000,-462.46160238,0.00035,30]
[421616883,1777971032000,-984.81579913,0.00035,30]
[421616916,1777971040000,-500.0,0.00035598,7]
[421616930,1777971040000,-150.0,0.00036,7]
[421616924,1777971040000,-150.0,0.00036,30]
[421616932,1777971040000,-150.0,0.00036,7]
[421616920,1777971040000,-720.0,0.00035599,3]
[421616914,1777971040000,-500.0,0.00035598,7]
[421616913,1777971040000,-495.74396061,0.00035598,7]
[421616917,1777971040000,-500.0,0.00035598,7]
[421616915,1777971040000,-500.0,0.00035598,7]
[421616903,1777971040000,-927.32283138,0.00035,30]
[421616911,1777971040000,-500.0,0.00035598,7]
[421616912,1777971040000,-500.0,0.00035598,7]
[421616908,1777971040000,-163.0,0.00035092,10]
[421616909,1777971040000,-232.25,0.00035598,7]
[421616907,1777971040000,-1620.83065905,0.00035045,2]
[421616906,1777971040000,-36986.18128792,0.00035,30]
[421616905,1777971040000,-7210.39503157,0.00035,30]
[421616904,1777971040000,-297.0302,0.00035,30]
[421616926,1777971040000,-150.0,0.00036,7]
[421616910,1777971040000,-500.0,0.00035598,7]
[421616922,1777971040000,-163.0,0.00035914,10]
[421616918,1777971040000,-541.2093685,0.00035598,7]
[421616939,1777971040000,-150.0,0.00036,7]
[421616982,1777971040000,-2184.34232518,0.00036635,2]
[421616971,1777971040000,-359.96230042,0.00036635,2]
[421616974,1777971040000,-1193.48095674,0.00036635,2]
[421616967,1777971040000,-22238.65313993,0.00036635,2]
[421616961,1777971040000,-500.0,0.00036603,2]
[421616959,1777971040000,-2652.95899536,0.00036567,2]
[421616963,1777971040000,-513.40347208,0.00036607,21]
[421616969,1777971040000,-2658.34423847,0.00036635,2]
[421616954,1777971040000,-4488.4728301,0.00036567,2]
[421616953,1777971040000,-150.0,0.00036522,7]
[421616965,1777971040000,-10704.48344628,0.00036635,2]
[421616951,1777971040000,-200.0,0.00036452,2]
[421616928,1777971040000,-150.0,0.00036,7]
[421616949,1777971040000,-150.0,0.00036348,7]
[421616943,1777971040000,-150.0,0.00036173,2]
[421616941,1777971040000,-560.0,0.00036031,2]
[421616937,1777971040000,-150.0,0.00036,7]
[421616957,1777971040000,-335.38,0.00036567,2]
[421616988,1777971040000,-1542.49586048,0.00036635,2]
[421616947,1777971040000,-5000.0,0.00036314,2]
[421616945,1777971040000,-150.0,0.00036174,7]
[421616934,1777971040000,-150.41189386,0.00036,7]
[421616991,1777971041000,-866.12932493,0.00036635,2]
[421616989,1777971041000,-2287.50356674,0.00036635,2]
[421616990,1777971041000,-2008.31450221,0.00036635,2]
[421617004,1777971043000,-40.83712597,0.00036696,7]
[421617002,1777971043000,-1170.88033862,0.00036635,2]
[421617003,1777971043000,-109.16287403,0.00036696,7]
[421617005,1777971043000,-222.41966423,0.00036831,3]
[421617007,1777971043000,-122.9385647,0.00037,7]
[421617010,1777971043000,518.0,0.00028,2]
[421617006,1777971043000,-150.0,0.0003687,7]
[421617058,1777971046000,-150.0,0.00038087,7]
[421617064,1777971046000,-2634.293386,0.00038523,2]
[421617056,1777971046000,-150.0,0.00038,7]
[421617055,1777971046000,-150.0,0.00038,7]
[421617054,1777971046000,-150.0,0.00038,7]
[421617053,1777971046000,-150.0,0.00037913,7]
[421617047,1777971046000,-1672.61888549,0.00037737,2]
[421617050,1777971046000,-200.0,0.00037808,120]
[421617049,1777971046000,-200.0,0.00037808,120]
[421617045,1777971046000,-152.0,0.00037404,4]
[421617048,1777971046000,-150.0,0.00037739,7]
[421617044,1777971046000,-150.0,0.00037391,7]
[421617043,1777971046000,-7476.81182542,0.00037219,2]
[421617042,1777971046000,-150.0,0.00037217,7]
[421617052,1777971046000,-7476.81182542,0.00037871,2]
[421617041,1777971046000,-1993.0,0.000372,2]
[421617051,1777971046000,-200.0,0.00037808,120]
[421617040,1777971046000,-166.65,0.00037055,30]
[421617039,1777971046000,-150.0,0.00037043,7]
[421617037,1777971046000,-27.0614353,0.00037,7]
[421617038,1777971046000,-150.0,0.00037,7]
[421617060,1777971046000,-156.15270631,0.00038394,120]
[421617046,1777971046000,-150.0,0.00037565,7]
[421617059,1777971046000,-150.0,0.00038261,7]
[421617087,1777971046000,-150.0,0.00039304,7]
[421617062,1777971046000,-150.0,0.00038435,7]
[421617057,1777971046000,-160.9,0.00038062,2]
[421617089,1777971046000,-627.83837701,0.000395,2]
[421617088,1777971046000,-150.0,0.00039478,7]
[421617086,1777971046000,-2000.0,0.000393,112]
[421617084,1777971046000,-21.09431658,0.000393,112]
[421617082,1777971046000,-3445.55045774,0.00039175,2]
[421617083,1777971046000,-206.16192708,0.000393,112]
[421617081,1777971046000,-303.4385478,0.00039175,2]
[421617080,1777971046000,-3727.82281988,0.00039175,2]
[421617077,1777971046000,-150.0,0.0003913,7]
[421617075,1777971046000,-938.32494516,0.00039009,2]